Cogmind - Beta 13 @@@ ROGUE MODE // 2024.04.08 @ 16:04:57 Player: chexo4 Result: Self-destructed Performance ------------- Evolutions (1) 500 Regions Visited (4) 800 Robots Destroyed (62) 310 Value Destroyed (1211) 1211 Prototype IDs (5) 100 Alien Tech Used (0) 0 Bonus (93) 93 TOTAL SCORE: 3014 Bonus ------- High Alert Combat Kills 93 Cogmind --------- Core Integrity 89/400 Matter 252/300 Energy 277/280 System Corruption 10% Temperature Cool (0) Movement Rolling (93) Location -9/Mines Parts ------- > --- POWER (1) -------- Cooled Ion Engine > --- PROPULSION (3) --- Wheel Compact Wheel Compact Wheel > --- UTILITY (3) ------ Medium Storage Unit Targeting Computer Shield Generator (fused) > --- WEAPON (2) ------- Advanced Beam Cannon Improved Assault Rifle > --- INVENTORY (10) --- Heavy Ion Engine Cooled Ion Engine Cooled Ion Engine Wheel VTOL Module Heavy EM Pulse Gun Improved Medium Laser Improved Medium Laser Assault Rifle Grenade Launcher Peak State ------------ > --- POWER ------------ Cooled Ion Engine > --- PROPULSION ------- Wheel Wheel Compact Wheel > --- UTILITY ---------- Medium Storage Unit Targeting Computer Shield Generator > --- WEAPON ----------- Advanced Beam Cannon Improved Assault Rifle > --- INVENTORY -------- Heavy Ion Engine Cooled Ion Engine Cooled Ion Engine VTOL Module Heavy EM Pulse Gun Improved Medium Laser Improved Medium Laser Assault Rifle Grenade Launcher [Rating: 18] Favorites ----------- Power Cooled Ion Engine Engine Cooled Ion Engine Propulsion Wheel Treads Improved Treads Leg Aluminum Leg Wheel Wheel Utility Seismic Detector Device Seismic Detector Storage Small Storage Unit Processor Targeting Computer Weapon Advanced Beam Cannon Energy Gun Small Laser Energy Cannon Advanced Beam Cannon Ballistic Gun Heavy Assault Rifle Launcher Grenade Launcher Special Weapon Mining Laser Build | -11 -10 -10 -9 -9 ------- Run | Yrd Mat Min Mat Min Slots Evolved 2 | . . . 2 . Power . | . . . . . Propulsion 1 | . . . 1 . Utility 1 | . . . 1 . Weapon . | . . . . . Parts Attached 55 | 7 1 2 44 1 Power 5 | 1 . . 4 . Engine 5 | 1 . . 4 . Core . | . . . . . Reactor . | . . . . . Propulsion 15 | 2 . 1 11 1 Treads 2 | . . . 2 . Leg 5 | . . . 5 . Wheel 8 | 2 . 1 4 1 Hover . | . . . . . Flight . | . . . . . Utility 8 | 2 . . 6 . Device 5 | 1 . . 4 . Storage 2 | 1 . . 1 . Processor 1 | . . . 1 . Hackware . | . . . . . Protection . | . . . . . Artifact . | . . . . . Weapon 27 | 2 1 1 23 . Energy Gun 7 | 2 . . 5 . Energy Cannon 2 | . . . 2 . Ballistic Gun 10 | . . 1 9 . Ballistic Cannon . | . . . . . Launcher 4 | . . . 4 . Special Weapon 4 | . 1 . 3 . Impact Weapon . | . . . . . Slashing Weapon . | . . . . . Piercing Weapon . | . . . . . Special Melee Weapon . | . . . . . Unidentified Prototypes 5 | . . . 5 . Parts Lost 14 | . . 1 13 . Power 1 | . . . 1 . Propulsion 6 | . . 1 5 . Utility 4 | . . . 4 . Weapon 3 | . . . 3 . Highest Loss Streak 3 | . . 1 3 . To Critical Strikes . | . . . . . Average Slot Usage (%) 83 | . 100 99 78 100 Engine 11 | . 14 14 10 11 Leg 9 | . . . 12 . Wheel 14 | . 28 27 8 33 Device 11 | . 14 14 11 11 Storage 11 | . 14 14 11 11 Processor 3 | . . . 3 11 Energy Gun 4 | . 21 14 3 . Energy Cannon 5 | . . . 5 11 Ballistic Gun 7 | . . 8 7 11 Special Weapon 1 | . 6 5 1 . Naked Turns . | . . . . . Heaviest Build 27 | 12 12 12 27 27 Greatest Support 42 | 26 26 26 36 42 Greatest Overweight (x) 7 | . . 1 7 . Average Overweight (x) . | . . . . . Largest Inventory Capacity 10 | 8 8 8 10 10 Average Capacity 8 | 7 8 8 8 10 Most Carried 10 | 6 7 7 10 10 Average Carried 7 | 2 6 6 7 9 Final Capacity 10 | 8 8 8 10 10 Final Carried 10 | 6 7 6 9 10 Class Distribution -------------------- 74% | Mutant 25% | Scavenger-Mutant Dominant Class ---------------- Mutant | -10/Materials Mutant | -10/Mines Mutant | -9/Materials Mutant | -9/Mines Resources | -11 -10 -10 -9 -9 ----------- Run | Yrd Mat Min Mat Min Matter Collected 1176 | 201 . 32 822 121 Remotely . | . . . . . Salvage Created 1903 | 168 . 50 1463 222 Parts 122 | 12 . 4 90 16 Haulers Intercepted 2 | . . . 2 . Recyclers Shooed 4 | . . . 3 1 Parts Field Recycled . | . . . . . Retrieved Matter . | . . . . . Parts Self-Destructed . | . . . . . Prevented . | . . . . . Kills | -11 -10 -10 -9 -9 ------- Run | Yrd Mat Min Mat Min Combat Hostiles Destroyed 36 | . . 3 29 4 Guns 19 | . . 3 13 3 Cannons 3 | . . . 2 1 AOE 14 | . . . 14 . Classes Destroyed 9 | 2 . 1 6 . Worker 1 | . . . 1 . Builder 4 | . . . 4 . Tunneler 6 | 5 . . . 1 Hauler 2 | . . . 2 . Recycler 10 | 1 . . 7 2 Watcher 3 | . . . 3 . Swarmer 13 | . . 3 6 4 Grunt 18 | . . . 18 . Sentry 5 | . . . 5 . Best Kill Streak 16 | 3 . 3 16 5 Combat Bots Only 11 | . . 3 11 4 Max Kills in Single Turn 3 | 1 . 1 3 1 Gunslinging . | . . . . . Exploded 2 | . . . 2 . Melee . | . . . . . Uniques/NPCs Destroyed . | . . . . . Combat | -11 -10 -10 -9 -9 -------- Run | Yrd Mat Min Mat Min Hostile Shots Fired 161 | . . 29 127 5 Missed 45 | . . 5 38 2 Damage Taken 1643 | . . 193 1433 17 Core 355 | . . 44 306 5 Absorbed by Shields 15 | . . . 7 8 Core Remaining (%) 91 | 100 . 82 . . Volleys Fired 131 | 14 8 10 92 7 Largest 2 | 2 1 2 2 2 Hottest 168 | 90 100 60 168 91 Shots Fired 236 | 28 8 20 164 16 Gun 161 | 28 . 20 105 8 Cannon 27 | . . . 19 8 Launcher 24 | . . . 24 . Special 24 | . 8 . 16 . Kinetic 83 | . . 10 65 8 Thermal 129 | 28 8 10 75 8 Explosive 24 | . . . 24 . Electromagnetic . | . . . . . Robot Hit Streak 9 | 5 . 3 9 3 Robot Miss Streak 6 | 2 . 6 5 1 Penetration Max . | . . . . . Secondary Targets 1 | . . . 1 . Max Gunslinging Chain 1 | . . . 1 . Shots Hit Robots 103 | 18 . 9 67 9 Core Hits 88 | 7 . 4 70 7 Critical Kills 1 | . . 1 . . Critical Parts Destroyed 1 | . . . 1 . Critical Strikes 5 | 3 . 1 1 . Burn 3 | 3 . . . . Destroy 2 | . . 1 1 . Melee Attacks . | . . . . . Impact . | . . . . . Slashing . | . . . . . Piercing . | . . . . . Sneak Attacks . | . . . . . Combat Hostiles . | . . . . . Follow-up Attacks . | . . . . . Damage Inflicted 2850 | 222 . 118 2351 159 Guns 1120 | 222 . 114 727 57 Cannons 205 | . . . 103 102 Explosions 1513 | . . . 1513 . Melee . | . . . . . Ramming 12 | . . 4 8 . Kinetic 511 | . . 80 374 57 Thermal 814 | 222 . 34 456 102 Explosive 1513 | . . . 1513 . Electromagnetic . | . . . . . Impact . | . . . . . Slashing . | . . . . . Piercing . | . . . . . Highest Corruption 10 | . . . 10 10 Average Corruption 5 | . . . 4 10 Corruption Purged . | . . . . . Corruption Blocked . | . . . . . Effects 53 | . . . 43 10 Message Errors 12 | . . . 10 2 Matter Fused 11 | . . . 7 4 Heat Flow Errors 5 | . . . 5 . Energy Discharges 5 | . . . 4 1 Parts Fused 2 | . . . 2 . Data Loss (minor) 8 | . . . 8 . Data Loss (major) 2 | . . . 1 1 Misfires 5 | . . . 3 2 Alerts 1 | . . . 1 . Misdirections 2 | . . . 2 . Overload Shots . | . . . . . Overflow Damage 7 | . . . 7 . Projectiles 1 | . . . 1 . Explosions 6 | . . . 6 . Melee . | . . . . . Knockbacks . | . . . . . Impact . | . . . . . Kinetic . | . . . . . Secondary . | . . . . . Self-Inflicted Damage 75 | . . 2 73 . Shots 2 | . . . 2 . Rammed 3 | . . 1 2 . Targets Rammed 6 | . . 1 5 . Kicked 3 | . . . 3 . Crushed . | . . . . . Highest Temperature 189 | 90 60 . 189 45 Average Temperature 33 | 45 18 . 34 16 Received Heat Transfer 453 | . . . 453 . Siege Activations . | . . . . . Robots Corrupted . | . . . . . Combat Hostiles . | . . . . . Parts Fried . | . . . . . Impact Corruptions . | . . . . . Robots Melted . | . . . . . Combat Hostiles . | . . . . . Parts Melted 3 | 1 . . 2 . Heat Transferred 2079 | 805 . 75 1014 185 Parts Sabotaged . | . . . . . Parts Stolen . | . . . . . Parts Stripped . | . . . . . Power Chain Reactions . | . . . . . Alert | -11 -10 -10 -9 -9 ------- Run | Yrd Mat Min Mat Min Peak Influence 681 | 30 60 83 681 310 Initial 205 | . 19 23 31 205 Average 337 | 15 41 35 429 252 Maximum Alert Level 2 | . . . 2 1 Low Security (%) 36 | 100 100 100 27 . Level 1 16 | . . . 4 100 Level 2 47 | . . . 67 . Level 3 . | . . . . . Level 4 . | . . . . . Level 5 . | . . . . . High Security . | . . . . . Max Security . | . . . . . Squads Dispatched 6 | . . . 6 . Investigation 4 | . . . 4 . Extermination . | . . . . . Reinforcement 2 | . . . 2 . Assault . | . . . . . Garrison . | . . . . . Intercept . | . . . . . Searches Triggered . | . . . . . Construction Impeded 1 | . . . 1 . Haulers Reinforced . | . . . . . Active Scanning Responses . | . . . . . Cargo Convoy Interrupts . | . . . . . Stealth | -11 -10 -10 -9 -9 --------- Run | Yrd Mat Min Mat Min Distress Signals 4 | . 1 1 2 . Communications Jammed . | . . . . . Distress Signals . | . . . . . Times Spotted 50 | . 1 4 42 3 Peak Tracking Total 6 | . 3 4 6 3 Tactical Retreats 4 | . 2 . 2 . Traps | -11 -10 -10 -9 -9 ------- Run | Yrd Mat Min Mat Min Traps Triggered 1 | . . . 1 . Indirectly . | . . . . . Trap Hack Attempts . | . . . . . Triggered . | . . . . . Disarmed . | . . . . . Reprogrammed . | . . . . . Reused . | . . . . . Traps Extracted . | . . . . . Installed . | . . . . . Triggered . | . . . . . Machines | -11 -10 -10 -9 -9 ---------- Run | Yrd Mat Min Mat Min Machines Disabled 3 | . . . 3 . Max in Single Turn 1 | . . . 1 . Machines Repaired . | . . . . . Machines Dismantled . | . . . . . Machines Sabotaged . | . . . . . Overloaded Fab Kills . | . . . . . Hacking | -11 -10 -10 -9 -9 --------- Run | Yrd Mat Min Mat Min Machines Accessed 8 | . 2 . 6 . Terminals 7 | . 2 . 5 . Fabricators . | . . . . . Repair Stations . | . . . . . Recycling Units . | . . . . . Scanalyzers 1 | . . . 1 . Garrison Access . | . . . . . Total Hacks 23 | . 5 . 18 . Successful 12 | . 2 . 10 . Failed 11 | . 3 . 8 . Catastrophic 2 | . . . 2 . Database Lockouts . | . . . . . Manual 13 | . 5 . 8 . Terminals 21 | . 5 . 16 . Fabricators . | . . . . . Repair Stations . | . . . . . Recycling Units . | . . . . . Scanalyzers 2 | . . . 2 . Garrison Access . | . . . . . Terminal Hacks 10 | . 2 . 8 . Record 6 | . . . 6 . Branch Access Points 1 | . . . 1 . Terminal Index 2 | . 1 . 1 . Zone Layout 1 | . 1 . . . Fabricator Hacks . | . . . . . Repair Station Hacks . | . . . . . Recycling Unit Hacks . | . . . . . Scanalyzer 2 | . . . 2 . Insert Component 1 | . . . 1 . Analyze 1 | . . . 1 . Garrison Access Hacks . | . . . . . Unauthorized Hacks . | . . . . . Terminals . | . . . . . Fabricators . | . . . . . Repair Stations . | . . . . . Recycling Units . | . . . . . Scanalyzers . | . . . . . Garrison Access . | . . . . . Data Cores Recovered . | . . . . . Used . | . . . . . Hacking Detections 8 | . 2 . 6 . Full Trace Events 4 | . 1 . 3 . Feedback Events 1 | . . . 1 . Corruption 1 | . . . 1 . Feedback Blocked . | . . . . . Robot Schematics Acquired . | . . . . . Robots Built . | . . . . . Authchips . | . . . . . Time . | . . . . . Total Robot Build Rating . | . . . . . Part Schematics Acquired 1 | . . . 1 . Parts Built . | . . . . . Authchips . | . . . . . Time . | . . . . . Total Part Build Rating . | . . . . . Parts Repaired . | . . . . . Time . | . . . . . Parts Recycled . | . . . . . Recycled Matter . | . . . . . Retrieved Matter . | . . . . . Retrieved Components . | . . . . . Parts Scanalyzed 1 | . . . 1 . Part Schematics Acquired 1 | . . . 1 . Parts Damaged . | . . . . . Bothacking | -11 -10 -10 -9 -9 ------------ Run | Yrd Mat Min Mat Min Used RIF Installer . | . . . . . Robots Hacked . | . . . . . Non-combat . | . . . . . Combat . | . . . . . Robot Hacks Applied . | . . . . . Relay Couplers Released . | . . . . . Fabnet Peak Effective % . | . . . . . Robots Rewired . | . . . . . Allies Hacked . | . . . . . Hacks Repelled . | . . . . . Allies | -11 -10 -10 -9 -9 -------- Run | Yrd Mat Min Mat Min Total Allies . | . . . . . Largest Group . | . . . . . Highest-Rated Group . | . . . . . Highest-Rated Ally . | . . . . . Total Orders . | . . . . . Ally Attacks . | . . . . . Total Damage . | . . . . . Kills . | . . . . . Allies Corrupted . | . . . . . Allies Melted . | . . . . . Intel | -11 -10 -10 -9 -9 ------- Run | Yrd Mat Min Mat Min Robot Analysis Total . | . . . . . Derelict Logs Recovered 1 | . . . . 1 Drone Launches . | . . . . . Drone Recoveries . | . . . . . Exploration | -11 -10 -10 -9 -9 ------------- Run | Yrd Mat Min Mat Min Turns Passed 2470 | 131 112 185 1729 313 Spaces Moved 1544 | 82 84 170 930 278 Core 20 | 10 . . 10 . Treads 72 | . . . 72 . Legs 458 | . . . 458 . Wheels 994 | 72 84 170 390 278 Hover . | . . . . . Flight . | . . . . . Fastest Speed 50 | 50 90 80 80 86 Average Speed 120 | 85 90 88 140 90 Slowest Speed 400 | 90 90 95 400 93 Overloaded Moves . | . . . . . Propulsion Burnouts . | . . . . . Robots Hopped . | . . . . . Cave-ins Triggered 1 | . . . 1 . Exploration Rate (%) 33 | 4 12 27 60 62 Regions Visited 4 Branch Regions 2 Pre-discovered Areas 2 | . . 1 . 1 Known Exits Taken 1 | . . . 1 . Unknown Exits Taken 3 | 1 1 1 . . Scrap Searched 1 | . . . . 1 Spaces Dug 24 | . 8 . 16 . Terrain Destroyed 151 | . 8 . 143 . Melee . | . . . . . Projectile 24 | . 8 . 16 . AOE 127 | . . . 127 . Terrain Rammed . | . . . . . Walls Destroyed . | . . . . . Machines Disabled . | . . . . . Actions | -11 -10 -10 -9 -9 --------- Run | Yrd Mat Min Mat Min Total 1868 | 115 95 183 1150 325 Wait 82 | . 2 1 41 38 Move 1540 | 81 83 169 929 278 Hop . | . . . . . Pick Up 40 | 13 1 . 25 1 Fast Attach 6 | . . . 6 . Attach 26 | 7 . 1 18 . Detach . | . . . . . Swap 23 | . 1 1 20 1 Drop 14 | . . . 14 . Fire 131 | 14 8 10 92 7 Melee . | . . . . . Ram 2 | . . 1 1 . Kick 3 | . . . 3 . Crush 1 | . . . 1 . Escape Stasis . | . . . . . Rewire . | . . . . . Trap . | . . . . . Miscellaneous . | . . . . . Route ------- -11/Scrapyard -10/Materials -10/Mines -9/Materials (discovered 3 exits: [*Mat x2] / *Min) -9/Mines (discovered 1 exit: [*Mat]) History --------- Turn | Location | Event 16 | -11/Scrapyard | Discovered new exit (range 15) 132 | -11/Scrapyard | Entered Materials 209 | -10/Materials | Discovered new exit (range 11) 244 | -10/Materials | Entered Mines 245 | -10/Mines | Learned location of Storage (-8) 280 | -10/Mines | Assembled infested the area 306 | -10/Mines | Build established: Mutant 417 | -10/Mines | Discovered new exit (range 10) 429 | -10/Mines | Entered Materials 429 | -9/Materials | Evolved 2 slots: Propulsion x1, Utility x1 705 | -9/Materials | Discovered new exit (range 4) 778 | -9/Materials | Lost 3 parts (1p2n) 981 | -9/Materials | Core integrity fell below 50% 1022 | -9/Materials | Destroyed 11 combat bots 1111 | -9/Materials | Discovered new exit (range 16) 1130 | -9/Materials | Build established: Scavenger-Mutant 1341 | -9/Materials | Identified exit to Mines 1453 | -9/Materials | Crushed by falling debris 1453 | -9/Materials | System corruption reached 10% 1484 | -9/Materials | Lost 3 parts (1n1u1w) 1747 | -9/Materials | Build established: Mutant 2158 | -9/Materials | Entered Mines 2172 | -9/Mines | Met a Derelict bent on vengeance 2458 | -9/Mines | Discovered new exit (range 13) 2467 | -9/Mines | Learned location of Zion (-7) 2471 | -9/Mines | Self-destructed Last Messages --------------- Acquired 33 matter. R-06 Scavenger collects Lgt. Ion Engine. /YM&G4KNG9IDZO8M8AG7LGWI<, R-06 Scavenger destroyed. RE,ATNS&F9QXD%WLD5TMCKAKBJ G1%789=%QCBJ< System corrupted: Matter fused (-9). K-01 Serf collects debris. EXIT=FOUND K-01 Serf collects debris. System corrupted: FCS attempts to trigger Adv. Beam Cannon. System corrupted: Adv. Beam Cannon misfires. T-07 Excavator destroyed. Acquired derelict log, extracted data. World map updated: -7/Zion. Searching scrap... Found Rocket Launcher. Found Sml. Storage Unit. Found Propulsion Shielding. Found 22 Matter. Map ----- +----------------------------------------------------+ | | | | | | | | | | | | | | | | | | | | | | | | | | | | | | | | | | | | | | | ??????????????????????????????????????????? | | ??????????????????????????????????????????? | | ??????????????????????????????????????????? | | ??????????????????????????????????????????? | | ??????????????????????????????????????????? | | ?????????????????##########???????????????? | | ?????????????????#@!!] ????????? | | ?????????????????#!#######k#??????????????? | | ?????????????????# #??###?????????????????? | | ?????????????????# ### ##?#??????????????? | | ?????????????????# ## # ##### #????????? | | ?????????# ####### #????????? | | ???# #????????? | | ???# ##### ########???????????? | | ????????????????## ##??????????????????? | | ?????????????????### #???###?????????????? | | ???????????????????# #??# ##????????????? | | ??????????########## ### #????????????? | | ??????????# #### #????? | | ?????????????###### ! ????? | | ??????????????????# *%| < ????? | | ??????????????????# ##### #????? | | ??????????????????# ## #?????????????? | | ?????????????????## ##?# #?????????????? | | ????????????????## #??? #?????????????? | | ???????????????## ##???? #????????????? | | ???????????##### ##?????? #????????????? | | ??????????## ##???????##????????????? | | ??????????# ##??????????????????????? | | ?????????## #???????????????????????? | | ?????????# ##???????????????????????? | +----------------------------------------------------+ Best States ------------- Heat Dissipation 28 Energy Generation 14 Energy Capacity 280 Matter Stores 276 Matter Capacity 300 Sight Range 16 Terrain Scan Density 10 Additional Mass Support 6 Evasion (%) 55 Targeting Accuracy 5 Recoil Reduction 1 Item Schematics ----------------- Targeting Computer | -9/Materials | Scanalyzed Robot Schematics ------------------ None Fabricated ------------ Nothing Alien Tech Used ----------------- None Achievements -------------- None Challenges ------------ None Game ------ Seed GrapheneAlphaDisintegrator Manual? 0 Play Time 00:22:54 Cumulative 15.6 hours Start 2024.04.08 @ 15:42:41 End 2024.04.08 @ 16:04:57 Sessions 1 Manual Loads 0 Difficulty Rogue Special Mode None Game No. 43 Rogue 43 Adventurer 0 Explorer 0 Win Type - Total 0 Types 0/0/0/0/0/0/0/0/0 Lore% 16 Gallery% 25 Achievement% 21 Wizard Run 0 Options --------- Layout 1 ASCII 0 Keyboard 0 Movement Arrows Keybinds 0 Fullscreen 2 Font 24/Smallcaps Map View 50x35 Zoom Use 0% Tactical HUD 0 Map Filters NONE Filters NONE Steam 1 RUN: 1230634c-6fb4-435d-91ee-0fee71882467